bitfinex-derivatives/quotes_BTCF0:USTF0_20250422
["timestamp","ask_amount","ask_price","bid_price","bid_amount"]
[1745361334527,0.325187,92832.0,92831.0,0.19628269]
[1745361334737,0.334187,92832.0,92831.0,0.19628269]
[1745361334936,0.326187,92832.0,92831.0,0.19528269]
[1745361335138,0.334187,92832.0,92831.0,0.19628269]
[1745361335530,0.325187,92832.0,92831.0,0.19628269]
[1745361335729,0.335187,92832.0,92831.0,0.19628269]
[1745361336141,0.585224,92832.0,92806.0,0.3608]
[1745361336338,0.1077102,92812.0,92811.0,0.2197]
[1745361337036,0.1077102,92812.0,92811.0,0.1129]
[1745361337233,0.1077102,92812.0,92798.0,0.4685]
[1745361337234,0.2699556,92812.0,92804.0,0.3608]
[1745361337429,0.1077229,92801.0,92800.0,0.1129]
[1745361338048,0.1077357,92790.0,92789.0,0.47820074]
[1745361339133,0.1077357,92790.0,92789.0,0.67020074]
[1745361339534,0.1087357,92790.0,92789.0,0.67220074]
[1745361340837,0.1087357,92790.0,92789.0,0.689726]
[1745361341227,0.1087357,92790.0,92789.0,0.688726]
[1745361342036,0.1087357,92790.0,92789.0,0.689726]
[1745361342830,0.1087357,92790.0,92789.0,0.796826]
[1745361343930,0.001,92790.0,92789.0,0.797826]
[1745361344128,0.001,92790.0,92789.0,0.905598]
[1745361344336,0.001,92790.0,92789.0,0.904598]
[1745361344535,0.1087357,92790.0,92789.0,0.904598]
[1745361345134,0.1087357,92790.0,92789.0,0.6890891]
[1745361345437,0.1087357,92790.0,92789.0,0.796826]
[1745361345640,0.1087357,92790.0,92789.0,0.6890891]
[1745361345938,0.1087357,92790.0,92789.0,0.796826]
[1745361346141,0.3219357,92790.0,92789.0,0.796826]
[1745361347136,0.3219357,92790.0,92789.0,0.78030074]
[1745361347535,0.3219357,92790.0,92789.0,0.79671756]
[1745361348336,0.3219357,92790.0,92789.0,0.78030074]
[1745361349345,0.001,92790.0,92789.0,0.78030074]
[1745361349731,0.1087357,92790.0,92789.0,0.78030074]
[1745361350237,0.1087357,92790.0,92789.0,0.79738053]
[1745361354949,0.1087357,92790.0,92789.0,0.67256384]
[1745361355151,0.1087357,92790.0,92789.0,0.37246384]
[1745361355549,0.1087357,92790.0,92789.0,0.48020074]
[1745361356142,0.1147357,92790.0,92789.0,0.47820074]
[1745361356949,0.1147357,92790.0,92789.0,0.4949892]
[1745361357139,0.1207357,92790.0,92789.0,0.4959892]
[1745361357650,0.1147357,92790.0,92789.0,0.37046384]
[1745361357849,0.1147357,92790.0,92789.0,0.37146384]
[1745361358048,0.1197357,92790.0,92789.0,0.37146384]
[1745361358347,0.1197357,92790.0,92789.0,0.56346384]
[1745361359139,0.1137357,92790.0,92789.0,0.47820074]
[1745361359345,0.1197357,92790.0,92789.0,0.37146384]
[1745361359741,0.1137357,92790.0,92789.0,0.37046384]
[1745361359948,0.1197357,92790.0,92789.0,0.37146384]
[1745361360840,0.1197357,92790.0,92789.0,0.47920074]
[1745361361048,0.1187357,92790.0,92789.0,0.37146384]
[1745361361849,0.1137357,92790.0,92789.0,0.37146384]
[1745361362154,0.1197357,92790.0,92789.0,0.37146384]
[1745361362345,0.1197357,92790.0,92789.0,0.47920074]
[1745361362546,0.1197357,92790.0,92789.0,0.37146384]
[1745361362849,0.1187357,92790.0,92789.0,0.37146384]
[1745361363053,0.011,92790.0,92789.0,0.47920074]
[1745361363242,0.011,92790.0,92789.0,0.67120074]
[1745361363953,0.1187357,92790.0,92789.0,0.67120074]
[1745361364153,0.011,92790.0,92789.0,0.67120074]
[1745361364342,0.1137357,92790.0,92789.0,0.67120074]
[1745361364653,0.1167357,92790.0,92789.0,0.67220074]
[1745361365648,0.1137357,92790.0,92789.0,0.67220074]
[1745361366156,0.006,92790.0,92789.0,0.67220074]
[1745361366853,0.006,92790.0,92789.0,0.67120074]
[1745361367444,0.005,92790.0,92789.0,0.67120074]
[1745361368155,0.003,92790.0,92789.0,0.67020074]
[1745361368457,0.004,92790.0,92789.0,0.67220074]
[1745361368850,0.001,92790.0,92789.0,0.67120074]
[1745361369051,0.004,92790.0,92789.0,0.67120074]
[1745361369451,0.001,92790.0,92789.0,0.67120074]
[1745361369650,0.004,92790.0,92789.0,0.67120074]
[1745361370050,0.24633602,92815.0,92798.0,0.1077264]
[1745361370360,0.2094,92814.0,92798.0,0.4685264]
[1745361370653,1e-08,92799.0,92798.0,0.5762864]
[1745361371050,1e-08,92799.0,92798.0,0.7864864]
[1745361371264,1e-08,92799.0,92798.0,0.9784864]
[1745361371453,0.13683602,92815.0,92802.0,0.0538609]
[1745361371658,0.13683602,92815.0,92814.0,0.8293078]
[1745361372156,0.13683602,92815.0,92814.0,1.0213078]
[1745361372660,0.13983602,92815.0,92814.0,1.2371078]
[1745361372959,0.24754272,92815.0,92814.0,1.2371078]
[1745361373159,0.24454272,92815.0,92814.0,1.2371078]
[1745361373459,0.24754272,92815.0,92814.0,1.2371078]
[1745361373855,0.14283602,92815.0,92814.0,0.6622]
[1745361374059,0.1077171,92806.0,92805.0,1e-08]
[1745361374255,0.3977171,92806.0,92805.0,1e-08]
[1745361374650,0.6477171,92806.0,92805.0,1e-08]
[1745361374850,1.1162691,92806.0,92805.0,1e-08]
[1745361375047,1.3325691,92806.0,92805.0,1e-08]
[1745361375252,1.5245691,92806.0,92805.0,1e-08]
[1745361375453,1.5255691,92806.0,92805.0,1e-08]
[1745361376356,0.1077357,92790.0,92789.0,0.00966384]
[1745361377757,0.1097357,92790.0,92789.0,0.00966384]
[1745361377959,0.1097357,92790.0,92789.0,0.11740074]
[1745361378559,0.1107357,92790.0,92789.0,0.11740074]
[1745361378957,0.1107357,92790.0,92789.0,0.00966384]
[1745361379657,0.1107357,92790.0,92789.0,0.11740074]
[1745361379859,0.1107357,92790.0,92789.0,0.00966384]
[1745361381658,0.1107357,92790.0,92789.0,0.11740074]
[1745361381857,0.3218357,92790.0,92789.0,0.11740074]
[1745361382054,0.3218357,92790.0,92789.0,0.00966384]
[1745361382358,0.1077461,92781.0,92780.0,0.4685473]
[1745361382564,0.1616272,92778.0,92777.0,0.1077508]
[1745361382961,0.3727272,92778.0,92777.0,0.12450187]
[1745361383156,0.3727272,92778.0,92777.0,0.31650187]
[1745361383558,0.3727272,92778.0,92777.0,0.192]
[1745361384069,0.3727272,92778.0,92777.0,0.002]
[1745361384465,0.7345272,92778.0,92777.0,0.004]
[1745361385158,0.0538857,92760.0,92750.0,0.36088885]
[1745361385358,0.1077798,92752.0,92751.0,0.32678952]
[1745361386159,0.2073798,92752.0,92751.0,0.51878952]
[1745361386360,0.3100798,92752.0,92751.0,0.51878952]
[1745361386561,0.3100798,92752.0,92751.0,0.62378952]
[1745361386963,0.3110798,92752.0,92751.0,0.4067796]
[1745361387557,0.2033,92752.0,92751.0,0.4067796]
[1745361387758,0.3110798,92752.0,92751.0,0.5085796]
[1745361388663,0.3110798,92752.0,92751.0,0.4087796]
[1745361389568,0.3110798,92752.0,92751.0,0.41679502]
[1745361389772,0.2033,92752.0,92751.0,0.41679502]
[1745361389971,0.1062,92760.0,92759.0,0.1077717]
[1745361390275,0.3197705,92760.0,92759.0,0.1077717]
[1745361390869,0.3197705,92760.0,92759.0,0.2132717]
[1745361391069,0.3207705,92760.0,92759.0,0.2132717]
[1745361391271,0.3207705,92760.0,92759.0,0.4052717]
[1745361391777,0.213,92760.0,92759.0,0.4052717]
[1745361392476,0.3207705,92760.0,92759.0,0.4052717]
[1745361393670,0.213,92760.0,92759.0,0.4052717]
[1745361394069,0.0001617,92765.0,92759.0,0.4052717]
[1745361394070,0.0001617,92765.0,92759.0,0.5130757]
[1745361394273,0.0001617,92765.0,92764.0,0.1077659]
[1745361394764,0.0001617,92765.0,92764.0,0.2155659]
[1745361395166,0.0001617,92765.0,92764.0,0.4075659]
[1745361395371,0.0021617,92765.0,92764.0,0.4075659]
[1745361395873,0.1077398,92787.0,92786.0,0.107738]
[1745361396370,0.1077398,92787.0,92786.0,0.299738]
[1745361396569,0.2143398,92787.0,92786.0,0.299738]
[1745361397172,0.3204398,92787.0,92786.0,0.299738]
[1745361397367,0.3274398,92787.0,92786.0,0.299738]
[1745361397567,0.3334398,92787.0,92786.0,0.193]
[1745361398170,0.3334398,92787.0,92786.0,0.001]
[1745361398374,0.1077496,92778.0,92777.0,0.0001617]
[1745361398771,0.0538812,92767.0,92758.0,0.3608]
[1745361398977,0.1077694,92761.0,92760.0,0.17770491]
[1745361399874,0.2098694,92761.0,92760.0,0.17770491]
[1745361400179,0.2108694,92761.0,92760.0,0.37170491]
[1745361400580,0.2108694,92761.0,92760.0,0.37370491]
[1745361401175,0.2108694,92761.0,92760.0,0.31981991]
[1745361401574,0.2108694,92761.0,92760.0,0.21241991]
[1745361401774,0.2108694,92761.0,92760.0,0.32019041]
[1745361402070,0.2108694,92761.0,92760.0,0.21241991]
[1745361402977,0.2108694,92761.0,92760.0,0.196]
[1745361403281,0.2108694,92761.0,92760.0,0.004]
[1745361404977,0.5716694,92761.0,92760.0,0.004]
[1745361405372,0.1077798,92752.0,92751.0,0.00801542]
[1745361405676,0.107781,92751.0,92750.0,8.885e-05]
[1745361406075,0.0538928,92747.0,92741.0,0.00823919]
[1745361406381,0.1077996,92735.0,92730.0,0.0539026]
[1745361406679,0.1077996,92735.0,92732.0,0.1078024]
[1745361406880,0.1077996,92735.0,92733.0,0.12354788]
[1745361407076,0.10788845,92735.0,92734.0,0.11068498]
[1745361407269,0.67968845,92735.0,92734.0,0.00288418]
[1745361408677,0.68068845,92735.0,92734.0,0.01080816]
[1745361408881,0.68068845,92735.0,92734.0,0.11280816]
[1745361409070,0.68068845,92735.0,92734.0,0.30480816]
[1745361409380,0.68268845,92735.0,92734.0,0.30480816]
[1745361409772,0.68268845,92735.0,92734.0,0.51560896]
[1745361412075,0.32188845,92735.0,92734.0,0.51560896]
[1745361415181,0.32188845,92735.0,92734.0,0.40780816]
[1745361415381,0.32188845,92735.0,92734.0,0.20280816]
[1745361416186,0.32188845,92735.0,92734.0,0.01080816]
[1745361416382,0.32188845,92735.0,92734.0,0.11860896]
[1745361417182,0.31988845,92735.0,92734.0,0.11860896]
[1745361417380,0.31988845,92735.0,92734.0,0.01080816]
[1745361417381,0.32088845,92735.0,92734.0,0.01080816]
[1745361417887,0.32088845,92735.0,92734.0,0.11860896]
[1745361418080,0.32088845,92735.0,92734.0,0.31060896]
[1745361418779,0.32088845,92735.0,92734.0,0.41550896]
[1745361419182,0.00208885,92735.0,92734.0,0.41550896]
[1745361419778,0.10988845,92735.0,92734.0,0.41550896]
[1745361420187,0.00208885,92735.0,92734.0,0.41550896]
[1745361421178,0.10988845,92735.0,92734.0,0.41550896]
[1745361421791,0.00208885,92735.0,92734.0,0.41550896]
[1745361421992,0.0001617,92744.0,92743.0,0.1077903]
[1745361422194,0.1079508,92744.0,92743.0,0.109057]
[1745361422882,0.1079508,92744.0,92743.0,0.316657]
[1745361423089,0.2141508,92744.0,92743.0,0.508657]
[1745361423486,0.2171508,92744.0,92743.0,0.508657]
[1745361423882,0.003,92744.0,92743.0,0.5086907]
[1745361424084,0.1044,92758.0,92755.0,0.0538877]
[1745361424291,0.1091848,92765.0,92764.0,0.1077659]
[1745361425092,0.1091848,92765.0,92764.0,0.2997659]
[1745361425285,0.1091848,92765.0,92764.0,0.5042326]
[1745361425886,0.1121848,92765.0,92764.0,0.6120326]
[1745361426090,0.0978,92779.0,92771.0,0.0538784]
[1745361426390,0.107748,92780.0,92775.0,0.1077531]
[1745361426695,0.0538737,92780.0,92775.0,0.1077531]
[1745361426894,0.0978,92779.0,92775.0,0.1233992]
[1745361427094,0.24458802,92776.0,92775.0,0.3153992]
[1745361427293,0.107752,92776.0,92775.0,0.3166659]
[1745361427496,0.107752,92776.0,92775.0,0.1932667]
[1745361428086,0.107752,92776.0,92775.0,0.3010198]
[1745361428298,0.110752,92776.0,92775.0,0.3020198]
[1745361428690,0.003,92776.0,92775.0,0.3020198]
[1745361428996,0.114752,92776.0,92775.0,0.3020198]
[1745361429193,0.007,92776.0,92775.0,0.3020198]
[1745361429392,0.114752,92776.0,92775.0,0.1942667]
[1745361429993,0.475552,92776.0,92775.0,0.1942667]
[1745361430293,0.053877,92775.0,92746.0,0.1689329]
[1745361430595,0.161662,92759.0,92758.0,0.0538847]
[1745361430796,0.0538868,92759.0,92755.0,0.01573627]
[1745361430995,0.1077752,92756.0,92755.0,0.1079357]
[1745361431999,0.1087752,92756.0,92755.0,0.1109357]
[1745361432299,0.10860237,92756.0,92755.0,0.1109357]
[1745361432499,0.10860237,92756.0,92755.0,0.1139357]
[1745361432894,0.10860237,92756.0,92755.0,0.1109357]
[1745361433088,0.11160237,92756.0,92755.0,0.1109357]
[1745361433495,0.10860237,92756.0,92755.0,0.1139357]
[1745361434198,0.11260237,92756.0,92755.0,0.1109357]
[1745361434894,0.2508868,92758.0,92755.0,0.2102357]
[1745361435089,0.1077654,92765.0,92764.0,0.1077647]
[1745361435289,0.1061617,92766.0,92765.0,0.1077647]
[1745361435486,0.2139253,92766.0,92765.0,0.1077647]
[1745361436083,0.2139253,92766.0,92765.0,0.2997647]
[1745361436885,0.2169253,92766.0,92765.0,0.2997647]
[1745361437488,0.2189253,92766.0,92765.0,0.2997647]
[1745361438293,0.2179253,92766.0,92765.0,0.2997647]
[1745361439993,0.2179253,92766.0,92765.0,0.192]
[1745361440192,0.1077704,92761.0,92757.0,0.3608]
[1745361440497,0.1077752,92756.0,92751.0,0.01591323]
[1745361440693,0.1077752,92756.0,92752.0,0.1077791]
[1745361440998,0.1077752,92756.0,92755.0,0.107938]
[1745361441295,0.1077752,92756.0,92755.0,0.0001617]
[1745361442095,0.1077752,92756.0,92755.0,0.0011617]
[1745361442494,0.1077752,92756.0,92755.0,0.0001617]
[1745361442692,0.1077752,92756.0,92755.0,0.0011617]
[1745361442893,0.1087752,92756.0,92755.0,0.0031617]
[1745361444999,0.1087752,92756.0,92755.0,0.110938]
[1745361445191,0.004,92756.0,92755.0,0.301938]
[1745361445701,0.1087752,92756.0,92755.0,0.302938]
[1745361445897,0.1087752,92756.0,92755.0,0.398438]
[1745361446094,0.1117752,92756.0,92755.0,0.397438]
[1745361446302,0.1127752,92756.0,92755.0,0.396438]
[1745361447102,0.1127752,92756.0,92755.0,0.2886617]
[1745361447308,0.1117752,92756.0,92755.0,0.2886617]
[1745361447491,0.1117752,92756.0,92755.0,0.1931617]
[1745361447996,0.1097752,92756.0,92755.0,0.1921617]
[1745361448197,0.1127752,92756.0,92755.0,0.0011617]
[1745361449402,0.3110752,92756.0,92755.0,0.0011617]
[1745361449590,0.3080752,92756.0,92755.0,0.107938]
[1745361449794,0.3110752,92756.0,92755.0,0.108938]
[1745361451005,0.3090752,92756.0,92755.0,0.108938]
[1745361451198,0.3110752,92756.0,92755.0,0.0011617]
[1745361452206,0.3120752,92756.0,92755.0,0.0011617]
[1745361452711,0.3090752,92756.0,92755.0,0.0011617]
[1745361453004,0.3110752,92756.0,92755.0,0.0011617]
[1745361453503,0.3120752,92756.0,92755.0,0.0011617]
[1745361454199,0.3110752,92756.0,92755.0,0.0011617]
[1745361456003,0.3120752,92756.0,92755.0,0.0011617]
[1745361456406,0.3090752,92756.0,92755.0,0.0001617]
[1745361456602,0.3130752,92756.0,92755.0,0.0011617]
[1745361457305,0.3110752,92756.0,92755.0,0.0011617]
[1745361457804,0.3090752,92756.0,92755.0,0.0011617]
[1745361458001,0.3130752,92756.0,92755.0,0.0011617]
[1745361458401,0.3100752,92756.0,92755.0,0.0011617]
[1745361458607,0.3120752,92756.0,92755.0,0.0011617]
[1745361459107,0.3130752,92756.0,92755.0,0.0011617]
[1745361459696,0.3130752,92756.0,92755.0,0.108938]
[1745361460099,0.3120752,92756.0,92755.0,0.108938]
[1745361460400,0.3120752,92756.0,92755.0,0.0011617]
[1745361460601,0.3110752,92756.0,92755.0,0.0011617]
[1745361460801,0.2033,92756.0,92755.0,0.108938]
[1745361460999,0.108,92756.0,92755.0,0.108938]
[1745361461202,0.109,92756.0,92755.0,0.300938]
[1745361461401,0.11,92756.0,92755.0,0.300938]
[1745361461798,0.2177752,92756.0,92755.0,0.300938]
[1745361461998,0.2147752,92756.0,92755.0,0.300938]
[1745361462203,0.2167752,92756.0,92755.0,0.300938]
[1745361462702,0.2127752,92756.0,92755.0,0.299938]
[1745361462900,0.2147752,92756.0,92755.0,0.300938]
[1745361464112,0.2127752,92756.0,92755.0,0.300938]
[1745361464307,0.2147752,92756.0,92755.0,0.300938]
[1745361464702,0.2127752,92756.0,92755.0,0.300938]
[1745361464908,0.2147752,92756.0,92755.0,0.300938]
[1745361466012,0.2147752,92756.0,92755.0,0.1931617]
[1745361466815,0.3173752,92756.0,92755.0,0.1931617]
[1745361467319,0.3173752,92756.0,92755.0,0.0011617]
[1745361467910,0.1077856,92747.0,92746.0,0.1024]
[1745361468620,0.3070856,92747.0,92746.0,0.1024]
[1745361469020,0.3070856,92747.0,92746.0,0.1034]
[1745361469714,0.3080856,92747.0,92746.0,0.1024]
[1745361470623,0.1077891,92744.0,92743.0,0.1017]
[1745361471121,0.1077891,92744.0,92743.0,0.2937]
[1745361472214,0.1077891,92744.0,92743.0,0.192]
[1745361473116,0.1077961,92738.0,92737.0,0.0001617]
[1745361473317,0.4685961,92738.0,92737.0,0.0001617]
[1745361474116,0.5759961,92738.0,92737.0,0.1921617]
[1745361474315,0.5819961,92738.0,92737.0,0.1931617]
[1745361474815,0.5869961,92738.0,92737.0,0.1931617]
[1745361476120,0.5819961,92738.0,92737.0,0.1931617]
[1745361476318,0.5839961,92738.0,92737.0,0.1931617]
[1745361476716,0.5859961,92738.0,92737.0,0.1931617]
[1745361477320,0.5839961,92738.0,92737.0,0.1931617]
[1745361477623,0.1618428,92747.0,92746.0,0.1077868]
[1745361477928,0.1616829,92746.0,92745.0,0.1077877]
[1745361478122,0.2676829,92746.0,92745.0,0.5138877]
[1745361478723,0.2676829,92746.0,92745.0,0.4061]
[1745361478921,0.2676829,92746.0,92745.0,0.2959]
[1745361479118,0.3747829,92746.0,92745.0,0.2959]
[1745361480131,0.3747829,92746.0,92745.0,0.403688]
[1745361480322,0.3767829,92746.0,92745.0,0.403688]
[1745361480522,0.3797829,92746.0,92745.0,0.403688]
[1745361480922,0.3777829,92746.0,92745.0,0.403688]
[1745361481230,0.3767829,92746.0,92745.0,0.403688]
[1745361482023,0.3767829,92746.0,92745.0,0.2959]
[1745361482522,0.3747829,92746.0,92745.0,0.403688]
[1745361482722,0.3787829,92746.0,92745.0,0.403688]
[1745361482925,0.3787829,92746.0,92745.0,0.192]
[1745361483131,0.1077938,92740.0,92739.0,0.1024]
[1745361483824,0.1077938,92740.0,92739.0,0.2101949]
[1745361484118,0.1077938,92740.0,92739.0,0.5021949]
[1745361484319,0.1137938,92740.0,92739.0,0.5021949]
[1745361485830,0.1107938,92740.0,92739.0,0.3944]
[1745361486032,0.2165938,92740.0,92739.0,0.3944]
[1745361486531,0.2175938,92740.0,92739.0,0.3944]
[1745361487032,0.2135938,92740.0,92739.0,0.2954]
[1745361487624,0.2145938,92740.0,92739.0,0.2954]
[1745361487820,0.5763938,92740.0,92739.0,0.192]
[1745361488137,0.5763938,92740.0,92737.0,0.0001617]
[1745361488138,0.1077961,92738.0,92737.0,0.0001617]
[1745361489221,0.1077961,92738.0,92737.0,0.1921617]
[1745361489926,0.1117961,92738.0,92737.0,0.1921617]
[1745361490433,0.1117961,92738.0,92737.0,0.1931617]
[1745361490636,0.1077961,92738.0,92737.0,0.1931617]
[1745361491025,0.1117961,92738.0,92737.0,0.1931617]
[1745361491624,0.1078077,92728.0,92727.0,0.10780711]
[1745361491823,0.1078077,92728.0,92727.0,0.00815039]
[1745361492333,0.1078077,92728.0,92727.0,0.20015039]
[1745361493432,0.2099077,92728.0,92727.0,0.30795929]
[1745361493827,0.2099077,92728.0,92727.0,0.41805929]
[1745361494039,0.2109077,92728.0,92727.0,0.41805929]
[1745361494533,0.2099077,92728.0,92727.0,0.41805929]
[1745361494924,0.3608,92730.0,92729.0,0.1078066]
[1745361495131,0.21664646,92737.0,92736.0,0.1077973]
[1745361495330,0.21664646,92737.0,92736.0,0.2134973]
[1745361495642,0.21664646,92737.0,92736.0,0.3233973]
[1745361496135,0.21664646,92737.0,92736.0,0.5153973]
[1745361496527,0.21664646,92737.0,92736.0,0.5163973]
[1745361498533,0.1077977,92737.0,92736.0,0.5163973]
[1745361498922,0.1077977,92737.0,92736.0,0.4086]
[1745361499126,0.3207977,92737.0,92736.0,0.5163984]
[1745361500424,0.3207977,92737.0,92736.0,0.4086]
[1745361500630,0.3217977,92737.0,92736.0,0.193]
[1745361501135,0.3217977,92737.0,92736.0,0.001]
[1745361501729,0.1078077,92728.0,92727.0,0.00815039]
[1745361502332,0.3168077,92728.0,92727.0,0.00815039]
[1745361502826,0.1078194,92718.0,92717.0,0.01437642]
[1745361503025,0.3608,92719.0,92708.0,0.0539149]
[1745361503231,0.0539101,92718.0,92715.0,0.11261663]
[1745361503433,0.2524101,92718.0,92715.0,0.11261663]
[1745361503832,0.1078217,92716.0,92715.0,0.00801663]
[1745361504032,0.1617405,92713.0,92712.0,0.1078254]
[1745361504434,0.2628405,92713.0,92712.0,0.1078254]
[1745361504831,0.3602405,92713.0,92712.0,0.1078254]
[1745361505128,0.1078275,92711.0,92710.0,0.2623422]
[1745361505326,0.1078275,92711.0,92710.0,0.10852769]
[1745361505631,0.4686275,92711.0,92710.0,0.10852769]
[1745361505830,0.4686275,92711.0,92710.0,0.00792769]
[1745361506035,0.1078287,92710.0,92709.0,0.16375596]
[1745361506225,0.3118287,92710.0,92709.0,0.16375596]
[1745361506836,0.1078322,92707.0,92706.0,0.00161775]
[1745361507433,0.1078322,92707.0,92706.0,0.00952522]
[1745361507933,0.1088322,92707.0,92706.0,0.00952522]
[1745361509135,0.001,92707.0,92706.0,0.11735852]
[1745361509535,0.1108322,92707.0,92706.0,0.11735852]
[1745361509741,0.1108322,92707.0,92706.0,0.00952522]
[1745361509941,0.1118322,92707.0,92706.0,0.00952522]
[1745361510647,0.1098322,92707.0,92706.0,0.01052522]
[1745361511034,0.1108322,92707.0,92706.0,0.00952522]
[1745361511241,0.1088322,92707.0,92706.0,0.01052522]
[1745361512138,0.1088322,92707.0,92706.0,0.00952522]
[1745361512445,0.1108322,92707.0,92706.0,0.00952522]
[1745361513437,0.1098322,92707.0,92706.0,0.00952522]
[1745361513641,0.1108322,92707.0,92706.0,0.00952522]
[1745361514646,0.1118322,92707.0,92706.0,0.00952522]
[1745361515147,0.3218322,92707.0,92706.0,0.20152522]
[1745361515344,0.3198322,92707.0,92706.0,0.20152522]
[1745361515536,0.3228322,92707.0,92706.0,0.17878987]
[1745361515736,0.4226322,92707.0,92706.0,0.17878987]
[1745361516039,0.4216322,92707.0,92706.0,0.17878987]
[1745361516239,0.4216322,92707.0,92706.0,0.001]
[1745361516639,0.4226322,92707.0,92706.0,0.001]
[1745361517240,0.1078391,92701.0,92700.0,0.1]
[1745361517440,0.3878391,92701.0,92700.0,0.1]
[1745361517847,0.4957151,92701.0,92700.0,0.0600756]
[1745361518047,0.4957151,92701.0,92680.0,0.0996]
[1745361518048,0.1078612,92682.0,92680.0,0.0996]
[1745361518349,0.1078612,92682.0,92678.0,0.1061]
[1745361518543,0.1078612,92682.0,92680.0,0.099]
[1745361518743,0.1078612,92682.0,92681.0,0.10948082]
[1745361518947,0.1078612,92682.0,92681.0,0.21558082]
[1745361519139,0.1078612,92682.0,92681.0,0.76838082]
[1745361519342,0.1078612,92682.0,92681.0,0.40758082]
[1745361520148,0.1078612,92682.0,92681.0,0.30471842]
[1745361520343,0.1078612,92682.0,92681.0,0.41258082]
[1745361520543,0.1078612,92682.0,92681.0,0.20652577]
[1745361520744,0.1078612,92682.0,92681.0,0.20452577]
[1745361520944,0.1088612,92682.0,92681.0,0.21052577]
[1745361521645,0.1088612,92682.0,92681.0,0.20852577]
[1745361522451,0.1088612,92682.0,92681.0,0.31638817]
[1745361522648,0.1088612,92682.0,92681.0,0.20852577]
[1745361523138,0.4088612,92682.0,92681.0,0.20852577]
[1745361523540,0.1088612,92682.0,92681.0,0.20852577]
[1745361523851,0.1078612,92682.0,92681.0,0.20452577]
[1745361524040,0.1088612,92682.0,92681.0,0.31638817]
[1745361524246,0.1088612,92682.0,92681.0,0.40492577]
[1745361524445,0.1078612,92682.0,92681.0,0.40092577]
[1745361524745,0.1088612,92682.0,92681.0,0.20852577]
[1745361524950,0.1088612,92682.0,92681.0,0.31638817]
[1745361525346,0.1088612,92682.0,92681.0,0.20552577]
[1745361525541,0.1088612,92682.0,92681.0,0.20852577]
[1745361525750,0.1088612,92682.0,92681.0,0.31638817]
[1745361527651,0.0539288,92686.0,92681.0,0.31638817]
[1745361527652,0.08138203,92698.0,92690.0,0.0539255]
[1745361527855,0.08138203,92698.0,92697.0,0.1078438]
[1745361528246,0.08138203,92698.0,92697.0,0.2157198]
[1745361528446,0.1078438,92697.0,92696.0,0.208]
[1745361528651,0.1078438,92697.0,92696.0,0.3158449]
[1745361529157,0.1078438,92697.0,92696.0,0.5078449]
[1745361529748,0.2098438,92697.0,92696.0,0.5078449]
[1745361530649,0.08238203,92698.0,92697.0,0.1078438]
[1745361530650,0.001,92698.0,92697.0,0.1078438]
[1745361530843,0.1088426,92698.0,92697.0,0.3069438]
[1745361531052,0.1078426,92698.0,92697.0,0.3069438]
[1745361531248,0.1078426,92698.0,92697.0,0.4989438]
[1745361532351,0.10799509,92706.0,92705.0,0.1078345]
[1745361533053,0.10799509,92706.0,92705.0,0.4048345]
[1745361533257,0.10799509,92706.0,92705.0,0.5968345]
[1745361533551,0.10999509,92706.0,92705.0,0.5968345]
[1745361533955,0.00216179,92706.0,92705.0,0.5968345]
[1745361534154,0.0981,92715.0,92714.0,0.107824]
[1745361534353,0.1078228,92715.0,92714.0,0.107824]
[1745361534556,0.107824,92714.0,92713.0,0.1952]
[1745361534959,0.1078333,92706.0,92705.0,0.2899]
[1745361535258,0.1078333,92706.0,92705.0,0.30354395]
[1745361535453,0.1088333,92706.0,92705.0,0.30354395]
[1745361535654,0.1088333,92706.0,92705.0,0.41137845]
[1745361536654,0.1088333,92706.0,92705.0,0.60437845]
[1745361537261,0.1098333,92706.0,92705.0,0.60437845]
[1745361538055,0.1088333,92706.0,92705.0,0.60437845]
[1745361538261,0.2105333,92706.0,92705.0,0.192]
[1745361538656,0.2095333,92706.0,92705.0,0.192]
[1745361538962,0.2105333,92706.0,92705.0,0.192]
[1745361539465,0.2095333,92706.0,92705.0,0.193]
[1745361539851,0.2095333,92706.0,92705.0,0.196]
[1745361540052,0.1078333,92706.0,92705.0,0.3038345]
[1745361540261,0.3608,92708.0,92707.0,0.1078322]
[1745361540456,0.468631,92708.0,92707.0,0.1078322]
[1745361540861,0.468631,92708.0,92707.0,0.3017322]
[1745361541169,0.468631,92708.0,92707.0,0.4937322]
[1745361541468,0.468631,92708.0,92707.0,0.4967322]
[1745361541967,0.468631,92708.0,92707.0,0.4977322]
[1745361542166,0.569931,92708.0,92707.0,0.3899]
[1745361542366,0.569931,92708.0,92707.0,0.4977322]
[1745361543980,0.08138203,92711.0,92710.0,0.1078287]
[1745361544270,0.18920953,92711.0,92710.0,0.2998287]
[1745361545069,0.1078275,92711.0,92710.0,0.2998287]
[1745361545867,0.1078275,92711.0,92710.0,0.3018287]
[1745361546171,0.2084275,92711.0,92710.0,0.194]
[1745361546475,0.1078438,92697.0,92691.0,0.0539253]
[1745361546674,0.1078438,92697.0,92683.0,0.0539297]
[1745361546871,0.1078438,92697.0,92691.0,0.1078497]
[1745361547177,0.4032438,92697.0,92686.0,0.01367558]
[1745361547380,0.0539265,92690.0,92679.0,0.00539494]
[1745361547585,0.1078601,92683.0,92682.0,0.1078612]
[1745361548176,0.1078601,92683.0,92682.0,0.2998612]
[1745361548569,0.3049601,92683.0,92682.0,0.2998612]
[1745361548774,0.3049601,92683.0,92682.0,0.3018612]
[1745361549475,0.3059601,92683.0,92682.0,0.5017612]
[1745361550075,0.099,92683.0,92682.0,0.5017612]
[1745361550278,0.2068601,92683.0,92682.0,0.5017612]
[1745361551879,0.2068601,92683.0,92682.0,0.198]
[1745361552784,0.3066601,92683.0,92682.0,0.198]
[1745361553583,0.3066601,92683.0,92682.0,0.3058612]
[1745361555183,0.3066601,92683.0,92682.0,0.198]
[1745361556481,0.3066601,92683.0,92682.0,0.3058612]
[1745361556672,0.3066601,92683.0,92682.0,0.4026612]
[1745361556879,0.3066601,92683.0,92682.0,0.4986612]
[1745361558387,0.099,92683.0,92682.0,0.4986612]
[1745361558682,0.2068601,92683.0,92682.0,0.4986612]
[1745361560980,0.2068601,92683.0,92682.0,0.198]
[1745361561175,0.2068601,92683.0,92682.0,0.3058612]
[1745361562786,0.2068601,92683.0,92682.0,0.198]
[1745361563683,0.2068601,92683.0,92682.0,0.194]
[1745361563886,0.2078601,92683.0,92682.0,0.2998612]
[1745361565583,0.2078601,92683.0,92682.0,0.4825612]
[1745361566493,0.2068601,92683.0,92682.0,0.4825612]
[1745361566688,0.2068601,92683.0,92682.0,0.4835612]
[1745361567489,0.2058601,92683.0,92682.0,0.4845612]
[1745361568289,0.2058601,92683.0,92682.0,0.194]
[1745361569179,0.2058601,92683.0,92682.0,0.002]